fUSD/lending_fUSD_20250211
["ID","MTS","AMOUNT","RATE_DAILY","PERIOD"]
[352755645,1739292674078,-500.0,0.00017123,2]
[352755646,1739292674088,-500.0,0.00017123,2]
[352755647,1739292674099,-565.98,0.00017123,2]
[352755648,1739292674109,-500.0,0.00017123,2]
[352755649,1739292674119,-610.07,0.00017123,2]
[352755650,1739292674130,-500.0,0.00017123,2]
[352755651,1739292674140,-500.0,0.00017123,2]
[352755652,1739292674150,-500.0,0.00017123,2]
[352755653,1739292674161,-653.33,0.00017123,2]
[352755654,1739292674172,-500.0,0.00017123,2]
[352755655,1739292674182,-500.0,0.00017123,2]
[352755656,1739292674192,-500.0,0.00017123,2]
[352755657,1739292674202,-500.0,0.00017123,2]
[352755658,1739292674213,-500.0,0.00017123,2]
[352755659,1739292674224,-575.35,0.00017123,2]
[352755660,1739292674234,-543.76,0.00017123,2]
[352755661,1739292674246,-500.0,0.00017123,2]
[352755662,1739292674257,-560.98,0.00017123,2]
[352755663,1739292674274,-500.0,0.00017123,2]
[352755664,1739292674285,-500.0,0.00017123,2]
[352755665,1739292674296,-500.0,0.00017123,2]
[352755666,1739292674310,-624.60198347,0.00017123,2]
[352755667,1739292674321,-504.72,0.00017123,2]
[352755668,1739292674333,-500.0,0.00017123,2]
[352755669,1739292674345,-500.0,0.00017123,2]
[352755670,1739292674355,-721.21,0.00017123,2]
[352755671,1739292674366,-465.65,0.00017123,2]
[352755672,1739292674376,-500.0,0.00017123,2]
[352755673,1739292674386,-500.0,0.00017123,2]
[352755674,1739292674396,-500.0,0.00017123,2]
[352755675,1739292674406,-500.0,0.00017123,2]
[352755676,1739292674416,-686.28,0.00017123,2]
[352755677,1739292674427,-272.27,0.00017123,2]
[352755678,1739292674437,-500.0,0.00017123,2]
[352755679,1739292674448,-628.87,0.00017123,2]
[352755680,1739292674458,-500.0,0.00017123,2]
[352755681,1739292674468,-500.0,0.00017123,2]
[352755682,1739292674478,-500.0,0.00017123,2]
[352755683,1739292674488,-656.08,0.00017123,2]
[352755684,1739292674499,-579.17907249,0.00017123,2]
[352755685,1739292674512,-500.0,0.00017123,2]
[352755686,1739292674522,-973.03,0.00017123,2]
[352755687,1739292674533,-769.16,0.00017123,2]
[352755688,1739292674543,-500.0,0.00017123,2]
[352755689,1739292674553,-500.0,0.00017123,2]
[352755690,1739292674565,-500.0,0.00017123,2]
[352755691,1739292674575,-500.0,0.00017123,2]
[352755692,1739292674585,-500.0,0.00017123,2]
[352755693,1739292674595,-2633.29,0.00017123,2]
[352755694,1739292674605,-608.46,0.00017123,2]
[352755695,1739292674616,-500.0,0.00017123,2]
[352755696,1739292674626,-500.0,0.00017123,2]
[352755697,1739292674636,-562.42,0.00017123,2]
[352755698,1739292674646,-702.19,0.00017123,2]
[352755699,1739292674658,-500.0,0.00017123,2]
[352755700,1739292674668,-603.78,0.00017123,2]
[352755701,1739292674678,-500.0,0.00017123,2]
[352755702,1739292674688,-500.0,0.00017123,2]
[352755703,1739292674700,-500.0,0.00017123,2]
[352755704,1739292674710,-500.0,0.00017123,2]
[352755705,1739292674720,-500.0,0.00017123,2]
[352755706,1739292674730,-500.0,0.00017123,2]
[352755707,1739292674740,-613.88,0.00017123,2]
[352755708,1739292674750,-500.0,0.00017123,2]
[352755709,1739292674761,-521.19,0.00017123,2]
[352755710,1739292674771,-1362.81,0.00017123,2]
[352755711,1739292674782,-500.0,0.00017123,2]
[352755712,1739292674792,-500.0,0.00017123,2]
[352755713,1739292674801,-500.0,0.00017123,2]
[352755714,1739292674811,-557.52,0.00017123,2]
[352755715,1739292674821,-1147.2,0.00017123,2]
[352755716,1739292674831,-500.0,0.00017123,2]
[352755717,1739292674842,-500.0,0.00017123,2]
[352755718,1739292674852,-500.0,0.00017123,2]
[352755719,1739292674862,-500.0,0.00017123,2]
[352755720,1739292674871,-681.22,0.00017123,2]
[352755721,1739292674884,-500.0,0.00017123,2]
[352755722,1739292674894,-765.29,0.00017123,2]
[352755723,1739292674905,-500.0,0.00017123,2]
[352755724,1739292674915,-500.0,0.00017123,2]
[352755725,1739292674926,-500.0,0.00017123,2]
[352755726,1739292674935,-500.0,0.00017123,2]
[352755727,1739292674945,-500.0,0.00017123,2]
[352755728,1739292674956,-659.27,0.00017123,2]
[352755729,1739292674967,-500.0,0.00017123,2]
[352755730,1739292674977,-571.46,0.00017123,2]
[352755731,1739292674987,-500.0,0.00017123,2]
[352755732,1739292674997,-567.07,0.00017123,2]
[352755733,1739292675007,-500.0,0.00017123,2]
[352755734,1739292675018,-166.0,0.00017123,2]
[352755735,1739292675028,-1328.94,0.00017123,2]
[352755736,1739292675038,-702.14,0.00017123,2]
[352755737,1739292675048,-500.0,0.00017123,2]
[352755738,1739292675062,-653.21,0.00017123,2]
[352755739,1739292675073,-500.0,0.00017123,2]
[352755740,1739292675083,-500.0,0.00017123,2]
[352755741,1739292675093,-505.62,0.00017123,2]
[352755742,1739292675104,-781.92,0.00017123,2]
[352755743,1739292675114,-208.45973659,0.00017123,2]
[352755744,1739292675125,-500.0,0.00017123,2]
[352755745,1739292675135,-500.0,0.00017123,2]
[352755746,1739292675148,-768.57,0.00017123,2]
[352755747,1739292675158,-733.07,0.00017123,2]
[352755748,1739292675168,-227.44889192,0.00017123,2]
[352755749,1739292675178,-607.06,0.00017123,2]
[352755750,1739292675188,-708.15,0.00017123,2]
[352755751,1739292675198,-500.0,0.00017123,2]
[352755752,1739292675434,-1118.08,0.00017123,2]
[352755753,1739292675445,-500.0,0.00017123,2]
[352755754,1739292675455,-500.0,0.00017123,2]
[352755755,1739292675463,-500.0,0.00017123,2]
[352755756,1739292675473,-1638.68,0.00017123,2]
[352755757,1739292675482,-500.0,0.00017123,2]
[352755758,1739292675492,-500.0,0.00017123,2]
[352755759,1739292675501,-500.0,0.00017123,2]
[352755760,1739292675513,-972.23,0.00017123,2]
[352755761,1739292675523,-500.0,0.00017123,2]
[352755762,1739292675533,-1025.95,0.00017123,2]
[352755763,1739292675543,-849.42,0.00017123,2]
[352755764,1739292675553,-589.34,0.00017123,2]
[352755765,1739292675563,-500.0,0.00017123,2]
[352755766,1739292675572,-623.19,0.00017123,2]
[352755767,1739292675582,-949.12,0.00017123,2]
[352755768,1739292675592,-774.19,0.00017123,2]
[352755769,1739292675602,-592.84,0.00017123,2]
[352755770,1739292675612,-897.44,0.00017123,2]
[352755771,1739292675622,-500.0,0.00017123,2]
[352755772,1739292675632,-1236.71,0.00017123,2]
[352755773,1739292675642,-500.0,0.00017123,2]
[352755774,1739292675652,-1146.12,0.00017123,2]
[352755775,1739292675662,-877.02,0.00017123,2]
[352755776,1739292675672,-500.0,0.00017123,2]
[352755777,1739292675681,-500.0,0.00017123,2]
[352755778,1739292675691,-636.96,0.00017123,2]
[352755779,1739292675700,-500.0,0.00017123,2]
[352755780,1739292675710,-151.56892265,0.00017123,2]
[352755781,1739292675719,-851.21,0.00017123,2]
[352755782,1739292675729,-1026.57,0.00017123,2]
[352755783,1739292675739,-1722.06,0.00017123,2]
[352755784,1739292675748,-755.82,0.00017123,2]
[352755785,1739292675758,-182.42,0.00017123,2]
[352755786,1739292675769,-500.0,0.00017123,2]
[352755787,1739292675778,-500.0,0.00017123,2]
[352755788,1739292675788,-500.0,0.00017123,2]
[352755789,1739292675797,-1007.91,0.00017123,2]
[352755790,1739292675807,-1556.32,0.00017123,2]
[352755791,1739292675816,-743.69,0.00017123,2]
[352755792,1739292675825,-787.8,0.00017123,2]
[352755793,1739292675834,-500.0,0.00017123,2]
[352755794,1739292675844,-775.23,0.00017123,2]
[352755795,1739292675854,-506.89808701,0.00017123,2]
[352755796,1739292675865,-3453.19,0.00017123,2]
[352755797,1739292675875,-1296.08,0.00017123,2]
[352755798,1739292675889,-1077.77,0.00017123,2]
[352755799,1739292675899,-903.8,0.00017123,2]
[352755800,1739292675908,-1620.87,0.00017123,2]
[352755801,1739292675918,-500.0,0.00017123,2]
[352755802,1739292675928,-1360.37,0.00017123,2]
[352755803,1739292675938,-871.16,0.00017123,2]
[352755804,1739292675948,-1044.51,0.00017123,2]
[352755805,1739292675958,-1892.93,0.00017123,2]
[352755806,1739292675968,-1187.32,0.00017123,2]
[352755807,1739292675978,-1128.96,0.00017123,2]
[352755808,1739292675987,-500.0,0.00017123,2]
[352755809,1739292675997,-1085.95,0.00017123,2]
[352755810,1739292676006,-664.21,0.00017123,2]
[352755811,1739292676018,-831.29,0.00017123,2]
[352755812,1739292676028,-1315.41,0.00017123,2]
[352755813,1739292676037,-500.0,0.00017123,2]
[352755814,1739292676047,-1449.55,0.00017123,2]
[352755815,1739292676056,-1736.09,0.00017123,2]
[352755816,1739292676066,-792.28,0.00017123,2]
[352755817,1739292676075,-1153.98,0.00017123,2]
[352755818,1739292676085,-500.0,0.00017123,2]
[352755819,1739292676095,-500.0,0.00017123,2]
[352755820,1739292676104,-1628.97,0.00017123,2]
[352755821,1739292676114,-1363.01,0.00017123,2]
[352755822,1739292676123,-2696.96,0.00017123,2]
[352755823,1739292676133,-500.0,0.00017123,2]
[352755824,1739292676142,-1143.92,0.00017123,2]
[352755825,1739292676152,-628.01,0.00017123,2]
[352755826,1739292676162,-1164.3,0.00017123,2]
[352755827,1739292676172,-500.0,0.00017123,2]
[352755828,1739292676181,-1186.05,0.00017123,2]
[352755829,1739292676191,-1316.05,0.00017123,2]
[352755830,1739292676201,-500.0,0.00017123,2]
[352755831,1739292676210,-507.5,0.00017123,2]
[352755832,1739292676220,-1204.14,0.00017123,2]
[352755833,1739292676230,-500.0,0.00017123,2]
[352755834,1739292676241,-500.0,0.00017123,2]
[352755835,1739292676251,-2709.34,0.00017123,2]
[352755836,1739292676262,-2432.62,0.00017123,2]
[352755837,1739292676272,-1383.14,0.00017123,2]
[352755838,1739292676282,-1113.99,0.00017123,2]
[352755839,1739292676292,-516.51,0.00017123,2]
[352755840,1739292676302,-770.35,0.00017123,2]
[352755841,1739292676312,-3406.84,0.00017123,2]
[352755842,1739292676322,-1152.94,0.00017123,2]
[352755843,1739292676332,-1081.2,0.00017123,2]
[352755844,1739292676341,-500.0,0.00017123,2]
[352755845,1739292676351,-2107.97,0.00017123,2]
[352755846,1739292676361,-1266.65,0.00017123,2]
[352755847,1739292676371,-500.0,0.00017123,2]
[352755848,1739292676380,-694.27,0.00017123,2]
[352755849,1739292676390,-500.0,0.00017123,2]
[352755850,1739292676406,-517.54,0.00017123,2]
[352755851,1739292676417,-1409.01,0.00017123,2]
[352755852,1739292676427,-760.33,0.00017123,2]
[352755853,1739292676438,-1622.42,0.00017123,2]
[352755854,1739292676447,-908.49,0.00017123,2]
[352755855,1739292676457,-500.0,0.00017123,2]
[352755856,1739292676466,-500.0,0.00017123,2]
[352755857,1739292676476,-1394.87,0.00017123,2]
[352755858,1739292676486,-500.0,0.00017123,2]
[352755859,1739292676495,-2904.03,0.00017123,2]
[352755860,1739292676504,-1146.54,0.00017123,2]
[352755861,1739292676515,-881.37,0.00017123,2]
[352755862,1739292676524,-500.0,0.00017123,2]
[352755863,1739292676533,-581.55,0.00017123,2]
[352755864,1739292676543,-1246.46,0.00017123,2]
[352755865,1739292676553,-500.0,0.00017123,2]
[352755866,1739292676563,-963.63,0.00017123,2]
[352755867,1739292676573,-500.0,0.00017123,2]
[352755868,1739292676582,-500.0,0.00017123,2]
[352755869,1739292676592,-500.0,0.00017123,2]
[352755870,1739292676601,-500.0,0.00017123,2]
[352755871,1739292676611,-500.0,0.00017123,2]
[352755872,1739292676621,-1035.86,0.00017123,2]
[352755873,1739292676635,-1186.79,0.00017123,2]
[352755874,1739292676645,-1512.18,0.00017123,2]
[352755875,1739292676656,-718.14,0.00017123,2]
[352755876,1739292676665,-500.0,0.00017123,2]
[352755877,1739292676676,-1350.44,0.00017123,2]
[352755878,1739292676686,-500.0,0.00017123,2]
[352755879,1739292676696,-1320.12,0.00017123,2]
[352755880,1739292676706,-500.0,0.00017123,2]
[352755881,1739292676716,-668.38,0.00017123,2]
[352755882,1739292676726,-500.0,0.00017123,2]
[352755883,1739292676736,-500.0,0.00017123,2]
[352755884,1739292676745,-500.0,0.00017123,2]
[352755885,1739292676754,-862.44,0.00017123,2]
[352755886,1739292676765,-1589.93,0.00017123,2]
[352755887,1739292676775,-985.84,0.00017123,2]
[352755888,1739292676784,-1153.41,0.00017123,2]
[352755889,1739292676794,-1534.98,0.00017123,2]
[352755890,1739292676803,-500.0,0.00017123,2]
[352755891,1739292676813,-500.0,0.00017123,2]
[352755892,1739292676823,-1581.96,0.00017123,2]
[352755893,1739292676832,-1598.66,0.00017123,2]
[352755894,1739292676841,-761.15,0.00017123,2]
[352755895,1739292676851,-500.0,0.00017123,2]
[352755896,1739292676860,-737.13,0.00017123,2]
[352755897,1739292676870,-1270.11,0.00017123,2]
[352755898,1739292676881,-992.82,0.00017123,2]
[352755899,1739292676892,-500.0,0.00017123,2]
[352755900,1739292676902,-1121.5,0.00017123,2]
[352755901,1739292676911,-824.99,0.00017123,2]
[352755902,1739292676922,-500.0,0.00017123,2]
[352755903,1739292676932,-1979.99,0.00017123,2]
[352755904,1739292676942,-500.0,0.00017123,2]
[352755905,1739292676951,-1201.69,0.00017123,2]
[352755906,1739292676962,-500.0,0.00017123,2]
[352755907,1739292676972,-500.0,0.00017123,2]
[352755908,1739292676982,-635.61,0.00017123,2]
[352755909,1739292676992,-812.69,0.00017123,2]
[352755910,1739292677002,-500.0,0.00017123,2]
[352755911,1739292677012,-500.0,0.00017123,2]
[352755912,1739292677022,-1000.0,0.00017123,2]
[352755913,1739292677031,-1168.66,0.00017123,2]
[352755914,1739292677041,-2251.11,0.00017123,2]
[352755915,1739292677051,-300.0,0.00017123,2]
[352755916,1739292677060,-155.96,0.00017123,2]
[352755917,1739292677070,-10395.55057901,0.00017162,3]
[352755918,1739292677080,-666.6,0.00017165,2]
[352755919,1739292677089,-617.67,0.00017196,2]
[352755920,1739292677099,-671.45,0.00017196,2]
[352755921,1739292677109,-929.9,0.00017196,2]
[352755922,1739292677119,-1043.727911,0.0001726,2]
[352755923,1739292677128,-1232.861141,0.0001726,2]
[352755924,1739292677138,-500.0,0.0001726,2]
[352755925,1739292677147,-500.0,0.0001726,2]
[352755926,1739292677157,-500.0,0.0001726,2]
[352755927,1739292677166,-500.0,0.0001726,2]
[352755928,1739292677175,-500.0,0.0001726,2]
[352755929,1739292677185,-658.54,0.0001726,2]
[352755930,1739292677194,-500.0,0.0001726,2]
[352755931,1739292677204,-500.0,0.0001726,2]
[352755932,1739292677213,-274.27176076,0.0001726,2]
[352755933,1739292677222,-500.0,0.0001726,2]
[352755934,1739292677232,-416.83189318,0.0001726,2]
[352755935,1739292677242,-500.0,0.0001726,2]
[352755936,1739292677251,-500.0,0.0001726,2]
[352755937,1739292677260,-708.99,0.0001726,2]
[352755938,1739292677272,-500.0,0.0001726,2]
[352755939,1739292677281,-500.0,0.0001726,2]
[352755940,1739292677291,-500.0,0.0001726,2]
[352755941,1739292677301,-620.8,0.0001726,2]
[352755942,1739292677310,-500.0,0.0001726,2]
[352755943,1739292677320,-500.0,0.0001726,2]
[352755944,1739292677329,-500.0,0.0001726,2]
[352755945,1739292677339,-616.82,0.0001726,2]
[352755946,1739292677348,-533.34,0.0001726,2]
[352755947,1739292677357,-500.0,0.0001726,2]
[352755948,1739292677366,-512.37,0.0001726,2]
[352755949,1739292677375,-500.0,0.0001726,2]
[352755950,1739292677385,-500.0,0.0001726,2]
[352755951,1739292677394,-626.01,0.0001726,2]
[352755952,1739292677403,-500.0,0.0001726,2]
[352755953,1739292677412,-593.14,0.0001726,2]
[352755954,1739292677421,-681.21,0.0001726,2]
[352755955,1739292677431,-500.0,0.0001726,2]
[352755956,1739292677440,-500.0,0.0001726,2]
[352755957,1739292677450,-565.98,0.0001726,2]
[352755958,1739292677459,-500.0,0.0001726,2]
[352755959,1739292677468,-610.07,0.0001726,2]
[352755960,1739292677478,-500.0,0.0001726,2]
[352755961,1739292677487,-500.0,0.0001726,2]
[352755962,1739292677496,-500.0,0.0001726,2]
[352755963,1739292677505,-653.33,0.0001726,2]
[352755964,1739292677516,-500.0,0.0001726,2]
[352755965,1739292677526,-536.13299349,0.0001726,2]
[352755966,1739292677536,-500.0,0.0001726,2]
[352755967,1739292677545,-500.0,0.0001726,2]
[352755968,1739292677554,-500.0,0.0001726,2]
[352755969,1739292677563,-575.35,0.0001726,2]
[352755970,1739292677572,-543.76,0.0001726,2]
[352755971,1739292677582,-500.0,0.0001726,2]
[352755972,1739292677591,-560.98,0.0001726,2]
[352755973,1739292677600,-500.0,0.0001726,2]
[352755974,1739292677609,-500.0,0.0001726,2]
[352755975,1739292677618,-500.0,0.0001726,2]
[352755976,1739292677628,-504.72,0.0001726,2]
[352755977,1739292677637,-500.0,0.0001726,2]
[352755978,1739292677646,-500.0,0.0001726,2]
[352755979,1739292677655,-721.21,0.0001726,2]
[352755980,1739292677664,-500.0,0.0001726,2]
[352755981,1739292677673,-500.0,0.0001726,2]
[352755982,1739292677682,-500.0,0.0001726,2]
[352755983,1739292677693,-500.0,0.0001726,2]
[352755984,1739292677702,-686.28,0.0001726,2]
[352755985,1739292677711,-500.0,0.0001726,2]
[352755986,1739292677720,-628.87,0.0001726,2]
[352755987,1739292677730,-500.0,0.0001726,2]
[352755988,1739292677739,-462.07,0.0001726,2]
[352755989,1739292677802,-232.45685086,0.0001726,2]
[352755990,1739292677812,-656.08,0.0001726,2]
[352755991,1739292677821,-500.0,0.0001726,2]
[352755992,1739292677830,-973.03,0.0001726,2]
[352755993,1739292677839,-769.16,0.0001726,2]
[352755994,1739292677848,-293.43369383,0.0001726,2]
[352755995,1739292677857,-500.0,0.0001726,2]
[352755996,1739292677866,-500.0,0.0001726,2]
[352755997,1739292677876,-500.0,0.0001726,2]
[352755998,1739292677890,-500.0,0.0001726,2]
[352755999,1739292677899,-2633.29,0.0001726,2]
[352756000,1739292677908,-608.46,0.0001726,2]
[352756001,1739292677919,-480.91896011,0.0001726,2]
[352756002,1739292677928,-500.0,0.0001726,2]
[352756003,1739292677938,-562.42,0.0001726,2]
[352756004,1739292677947,-702.19,0.0001726,2]
[352756005,1739292677956,-500.0,0.0001726,2]
[352756006,1739292677967,-603.78,0.0001726,2]
[352756007,1739292677975,-500.0,0.0001726,2]
[352756008,1739292677984,-500.0,0.0001726,2]
[352756009,1739292677994,-500.0,0.0001726,2]
[352756010,1739292678003,-500.0,0.0001726,2]
[352756011,1739292678014,-500.0,0.0001726,2]
[352756012,1739292678024,-607.41782166,0.0001726,2]
[352756013,1739292678033,-500.0,0.0001726,2]
[352756014,1739292678042,-521.19,0.0001726,2]
[352756015,1739292678053,-1362.81,0.0001726,2]
[352756016,1739292678063,-500.0,0.0001726,2]
[352756017,1739292678073,-500.0,0.0001726,2]
[352756018,1739292678083,-500.0,0.0001726,2]
[352756019,1739292678093,-557.52,0.0001726,2]
[352756020,1739292678102,-1147.2,0.0001726,2]
[352756021,1739292678112,-500.0,0.0001726,2]
[352756022,1739292678123,-500.0,0.0001726,2]
[352756023,1739292678132,-500.0,0.0001726,2]
[352756024,1739292678142,-500.0,0.0001726,2]
[352756025,1739292678152,-681.22,0.0001726,2]
[352756026,1739292678162,-765.29,0.0001726,2]
[352756027,1739292678173,-500.0,0.0001726,2]
[352756028,1739292678183,-500.0,0.0001726,2]
[352756029,1739292678193,-283.6,0.0001726,2]
[352756030,1739292678204,-500.0,0.0001726,2]
[352756031,1739292678214,-500.0,0.0001726,2]
[352756032,1739292678224,-659.27,0.0001726,2]
[352756033,1739292678235,-500.0,0.0001726,2]
[352756034,1739292678244,-571.46,0.0001726,2]
[352756035,1739292678254,-500.0,0.0001726,2]
[352756036,1739292678268,-567.07,0.0001726,2]
[352756037,1739292678279,-500.0,0.0001726,2]
[352756038,1739292678289,-1328.94,0.0001726,2]
[352756039,1739292678299,-702.14,0.0001726,2]
[352756040,1739292678309,-500.0,0.0001726,2]
[352756041,1739292678319,-653.21,0.0001726,2]
[352756042,1739292678330,-500.0,0.0001726,2]
[352756043,1739292678340,-500.0,0.0001726,2]
[352756044,1739292678351,-505.62,0.0001726,2]
[352756045,1739292678361,-781.92,0.0001726,2]
[352756046,1739292678373,-500.0,0.0001726,2]
[352756047,1739292678384,-500.0,0.0001726,2]
[352756048,1739292678395,-768.57,0.0001726,2]
[352756049,1739292678405,-733.07,0.0001726,2]
[352756050,1739292678417,-607.06,0.0001726,2]
[352756051,1739292678428,-708.15,0.0001726,2]
[352756052,1739292678438,-500.0,0.0001726,2]
[352756053,1739292678449,-1118.08,0.0001726,2]
[352756054,1739292678459,-500.0,0.0001726,2]
[352756055,1739292678468,-500.0,0.0001726,2]
[352756056,1739292678478,-1638.68,0.0001726,2]
[352756057,1739292678488,-500.0,0.0001726,2]
[352756058,1739292678499,-500.0,0.0001726,2]
[352756059,1739292678509,-233.23317902,0.0001726,2]
[352756060,1739292678519,-972.23,0.0001726,2]
[352756061,1739292678529,-500.0,0.0001726,2]
[352756062,1739292678539,-1025.95,0.0001726,2]
[352756063,1739292678549,-849.42,0.0001726,2]
[352756064,1739292678559,-592.38,0.0001726,2]
[352756065,1739292678569,-589.34,0.0001726,2]
[352756066,1739292678578,-623.19,0.0001726,2]
[352756067,1739292678588,-949.12,0.0001726,2]
[352756068,1739292678598,-774.19,0.0001726,2]
[352756069,1739292678607,-592.84,0.0001726,2]
[352756070,1739292678616,-897.44,0.0001726,2]
[352756071,1739292678626,-500.0,0.0001726,2]
[352756072,1739292678636,-1236.71,0.0001726,2]
[352756073,1739292678645,-500.0,0.0001726,2]
[352756074,1739292678656,-1146.12,0.0001726,2]
[352756075,1739292678667,-877.02,0.0001726,2]
[352756076,1739292678677,-500.0,0.0001726,2]
[352756077,1739292678687,-500.0,0.0001726,2]
[352756078,1739292678697,-636.96,0.0001726,2]
[352756079,1739292678706,-264.6,0.0001726,2]
[352756080,1739292678716,-851.21,0.0001726,2]
[352756081,1739292678727,-1026.57,0.0001726,2]
[352756082,1739292678737,-1722.06,0.0001726,2]
[352756083,1739292678747,-755.82,0.0001726,2]
[352756084,1739292678758,-500.0,0.0001726,2]
[352756085,1739292678768,-500.0,0.0001726,2]
[352756086,1739292678779,-1007.91,0.0001726,2]
[352756087,1739292678791,-1556.32,0.0001726,2]
[352756088,1739292678802,-743.69,0.0001726,2]
[352756089,1739292678812,-787.8,0.0001726,2]
[352756090,1739292678822,-500.0,0.0001726,2]
[352756091,1739292678832,-775.23,0.0001726,2]
[352756092,1739292678843,-3453.19,0.0001726,2]
[352756093,1739292678854,-1296.08,0.0001726,2]
[352756094,1739292678864,-1077.77,0.0001726,2]
[352756095,1739292678874,-903.8,0.0001726,2]
[352756096,1739292678887,-1620.87,0.0001726,2]
[352756097,1739292678897,-202.88,0.0001726,2]
[352756098,1739292678907,-1360.37,0.0001726,2]
[352756099,1739292678917,-871.16,0.0001726,2]
[352756100,1739292678928,-1044.51,0.0001726,2]
[352756101,1739292678937,-1892.93,0.0001726,2]
[352756102,1739292678947,-1187.32,0.0001726,2]
[352756103,1739292678962,-1128.96,0.0001726,2]
[352756104,1739292678973,-500.0,0.0001726,2]
[352756105,1739292678983,-1085.95,0.0001726,2]
[352756106,1739292678992,-664.21,0.0001726,2]
[352756107,1739292679002,-831.29,0.0001726,2]
[352756108,1739292679011,-1315.41,0.0001726,2]
[352756109,1739292679022,-500.0,0.0001726,2]
[352756110,1739292679031,-1449.55,0.0001726,2]
[352756111,1739292679040,-1736.09,0.0001726,2]
[352756112,1739292679050,-792.28,0.0001726,2]
[352756113,1739292679061,-1153.98,0.0001726,2]
[352756114,1739292679071,-500.0,0.0001726,2]
[352756115,1739292679081,-500.0,0.0001726,2]
[352756116,1739292679093,-1628.97,0.0001726,2]
[352756117,1739292679104,-1363.01,0.0001726,2]
[352756118,1739292679115,-2696.96,0.0001726,2]
[352756119,1739292679125,-500.0,0.0001726,2]
[352756120,1739292679135,-1143.92,0.0001726,2]
[352756121,1739292679146,-628.01,0.0001726,2]
[352756122,1739292679156,-1164.3,0.0001726,2]
[352756123,1739292679166,-500.0,0.0001726,2]
[352756124,1739292679176,-1186.05,0.0001726,2]
[352756125,1739292679186,-1316.05,0.0001726,2]
[352756126,1739292679196,-500.0,0.0001726,2]
[352756127,1739292679205,-507.5,0.0001726,2]
[352756128,1739292679216,-1204.14,0.0001726,2]
[352756129,1739292679226,-500.0,0.0001726,2]
[352756130,1739292679236,-500.0,0.0001726,2]
[352756131,1739292679246,-2709.34,0.0001726,2]
[352756132,1739292679256,-2432.62,0.0001726,2]
[352756133,1739292679268,-1383.14,0.0001726,2]
[352756134,1739292679278,-1113.99,0.0001726,2]
[352756135,1739292679288,-516.51,0.0001726,2]
[352756136,1739292679299,-770.35,0.0001726,2]
[352756137,1739292679309,-3406.84,0.0001726,2]
[352756138,1739292679319,-1152.94,0.0001726,2]
[352756139,1739292679329,-1081.2,0.0001726,2]
[352756140,1739292679340,-500.0,0.0001726,2]
[352756141,1739292679350,-2107.97,0.0001726,2]
[352756142,1739292679360,-500.0,0.0001726,2]
[352756143,1739292679371,-1266.65,0.0001726,2]
[352756144,1739292679382,-694.27,0.0001726,2]